fUSD/lending_fUSD_20240918
["ID","MTS","AMOUNT","RATE_DAILY","PERIOD"]
[338462582,1726660240228,-151.0,0.00012999,2]
[338462585,1726660240241,-151.0,0.00012999,2]
[338462587,1726660240250,-151.0,0.00012999,2]
[338462589,1726660240260,-151.0,0.00012999,2]
[338462591,1726660240270,-151.0,0.00012999,2]
[338462593,1726660240280,-151.0,0.00012999,2]
[338462595,1726660240290,-151.0,0.00012999,2]
[338462597,1726660240300,-151.0,0.00012999,2]
[338462598,1726660240310,-2631.308952,0.00012999,2]
[338462600,1726660240321,-2631.308961,0.00012999,2]
[338462603,1726660240332,-232.671799,0.00012999,2]
[338462605,1726660240342,-232.671796,0.00012999,2]
[338462606,1726660240353,-10000.0,0.00012999,2]
[338462608,1726660240363,-10000.0,0.00012999,2]
[338462610,1726660240374,-10000.0,0.00012999,2]
[338462612,1726660240383,-10000.0,0.00012999,2]
[338462613,1726660240394,-10000.0,0.00012999,2]
[338462614,1726660240405,-10000.0,0.00012999,2]
[338462615,1726660240415,-151.0,0.00012999,2]
[338462616,1726660240425,-10000.0,0.00012999,2]
[338462626,1726660240545,-10000.0,0.00012999,2]
[338462628,1726660240555,-451.082145,0.00012999,2]
[338462630,1726660240564,-451.082149,0.00012999,2]
[338462632,1726660240573,-459.638982,0.00012999,2]
[338462633,1726660240583,-459.638972,0.00012999,2]
[338462634,1726660240592,-545.0,0.00013,2]
[338462635,1726660240602,-350243.80540116,0.00013,2]
[338462636,1726660240612,-345898.59770799,0.00013,2]
[338462637,1726660241390,-601.79118,0.00013,2]
[338462638,1726660241403,-377.277724,0.00013,2]
[338462639,1726660241437,-446.94772863,0.0001298,2]
[338462640,1726660241448,-1080.3765719,0.0001298,2]
[338462641,1726660241489,-689.30241408,0.0001298,2]
[338462642,1726660241503,-595.22031439,0.0001298,2]
[338462643,1726660241513,-6937.66832369,0.00013,2]
[338462656,1726660244565,-1351.94950492,0.000129,2]
[338462657,1726660244576,-1079.0,0.0001298,2]
[338462658,1726660244586,-2292.57388305,0.0001298,2]
[338462659,1726660244598,-519.27314595,0.0001298,2]
[338462660,1726660244609,-2811.847029,0.0001298,2]
[338462661,1726660244619,-2811.847029,0.0001298,2]
[338462662,1726660244630,-2811.847029,0.0001298,2]
[338462663,1726660244640,-2811.847029,0.0001298,2]
[338462664,1726660244650,-2336.82098468,0.0001298,2]
[338462665,1726660244662,-475.02604432,0.0001298,2]
[338462666,1726660244672,-28.96218426,0.0001298,2]
[338462667,1726660244702,-485.28526725,0.0001298,2]
[338462668,1726660244715,-335.76750053,0.0001298,2]
[338462669,1726660244728,-1961.83207696,0.0001298,2]
[338462670,1726660244738,-2811.847029,0.0001298,2]
[338462671,1726660244764,-2811.847029,0.0001298,2]
[338462672,1726660244773,-2811.847029,0.0001298,2]
[338462673,1726660244783,-2811.847029,0.0001298,2]
[338462674,1726660244792,-2811.847029,0.0001298,2]
[338462675,1726660244803,-2811.847029,0.0001298,2]
[338462676,1726660244812,-2811.847029,0.0001298,2]
[338462677,1726660244822,-2811.847037,0.0001298,2]
[338462678,1726660244831,-4230.30093105,0.00013,2]
[338462679,1726660244845,-362.78211077,0.00013,2]
[338462680,1726660244857,-7807.49218914,0.00013,2]
[338462681,1726660244873,-1018.81330539,0.00013,2]
[338462682,1726660244884,-1741.19924389,0.00013,2]
[338462683,1726660244896,-279.62,0.00013,2]
[338462684,1726660244907,-903.83149778,0.00013,2]
[338462685,1726660244919,-688.5,0.00013,2]
[338462686,1726660245046,-987.54270914,0.00013,2]
[338462687,1726660245077,-1284.34063099,0.00013,2]
[338462688,1726660246061,-112702.07392212,0.00013,2]
[338462689,1726660246071,-1704.01034669,0.00013,2]
[338462690,1726660246084,-115814.25804833,0.00013,2]
[338462691,1726660246095,-97649.08988229,0.00013,2]
[338462693,1726660246107,-641.30813083,0.00013,2]
[338462694,1726660246157,-734.6067311,0.00013,2]
[338462695,1726660246169,-505.66665384,0.00013,2]
[338462696,1726660246181,-600.413728,0.00013,2]
[338462697,1726660246192,-453.16590618,0.00013,2]
[338462698,1726660246286,-2809.89847193,0.00013,2]
[338462699,1726660246298,-505.3046845,0.00013,2]
[338462700,1726660246314,-521.59343028,0.00013,2]
[338462701,1726660248208,-898.19027108,0.00013,2]
[338462702,1726660248231,-13129.64496203,0.00013,2]
[338462703,1726660269091,250.0,0.00012627,2]
[338462704,1726660321657,-230.00818522,0.00012667,2]
[338462705,1726660342438,200.0,0.00012086,2]
[338462706,1726660406209,168.83,0.00011991,2]
[338462707,1726660413730,209.45,0.00010073,2]
[338462708,1726660413941,209.45,0.00012337,2]
[338462709,1726660454904,250.0,0.00011976,2]
[338462710,1726660705531,152.35,0.0001194,2]
[338462711,1726660788881,179.64,0.00011933,2]
[338462712,1726660825814,250.0,0.00011933,2]
[338462715,1726660911623,500.0,0.00010164,2]
[338462716,1726660911784,507.93539176,0.00010164,2]
[338462717,1726660943280,885.91,0.00012033,2]
[338462718,1726660958750,188.5,0.00010023,2]
[338462719,1726660960122,188.5,0.00012287,2]
[338462720,1726660975722,1000.0,0.00011941,2]
[338462721,1726661102725,150.0,0.00011688,2]
[338462722,1726661103076,150.0,0.00012337,2]
[338462723,1726661105385,150.0,0.00011688,2]
[338462724,1726661114557,150.0,0.00011688,2]
[338462725,1726661114768,150.0,0.00012337,2]
[338462727,1726661371024,250.0,0.00011944,2]
[338462735,1726661432319,-150.0,0.00012727,2]
[338462736,1726661432329,-150.0,0.00012746,2]
[338462737,1726661432340,-150.0,0.00012813,2]
[338462738,1726661432349,-150.0,0.00012825,2]
[338462739,1726661432359,-150.0,0.00012839,2]
[338462740,1726661432371,-150.0,0.00012841,2]
[338462741,1726661432381,-150.0,0.00012849,2]
[338462742,1726661432390,-2935.89,0.00012871,2]
[338462743,1726661432399,-300.0,0.00012871,2]
[338462744,1726661432410,-8271.22,0.00012872,2]
[338462745,1726661432419,-7235.86,0.00012872,2]
[338462746,1726661432429,-3425.1,0.00012872,2]
[338462747,1726661432440,-631.714,0.00012873,2]
[338462748,1726661432449,-2303.0118,0.0001288,2]
[338462749,1726661432459,-372.441,0.0001288,2]
[338462750,1726661432469,-205.4632,0.0001288,2]
[338462751,1726661432478,-150.0,0.00012886,2]
[338462752,1726661432487,-500.0,0.00012895,2]
[338462753,1726661432497,-500.0,0.00012895,2]
[338462754,1726661432506,-500.0,0.00012896,2]
[338462755,1726661432516,-500.0,0.00012896,2]
[338462756,1726661432525,-500.0,0.00012896,2]
[338462757,1726661432535,-500.0,0.00012896,2]
[338462758,1726661432545,-500.0,0.00012896,2]
[338462759,1726661432555,-200.0,0.00012896,2]
[338462760,1726661432564,-1420.5123,0.000129,2]
[338462761,1726661432574,-1439.358,0.000129,2]
[338462762,1726661432583,-26582.9024,0.000129,2]
[338462763,1726661432593,-150.0,0.000129,2]
[338462764,1726661432603,-172.84876673,0.000129,2]
[338462765,1726661432613,-160.54050509,0.000129,2]
[338462766,1726661432623,-1135.4443,0.000129,2]
[338462767,1726661432633,-5729.64051939,0.000129,2]
[338462768,1726661432642,-158.5069591,0.000129,2]
[338462770,1726661432651,-2500.0,0.000129,2]
[338462772,1726661432661,-901.29966994,0.000129,2]
[338462774,1726661432670,-500.0,0.00012904,2]
[338462776,1726661432680,-150.0,0.00012905,2]
[338462778,1726661432689,-150.0,0.00012911,2]
[338462779,1726661432699,-150.0,0.00012914,2]
[338462780,1726661432709,-13483.0,0.00012914,2]
[338462781,1726661432719,-150.0,0.0001296,2]
[338462782,1726661432728,-1348.65,0.00012973,2]
[338462783,1726661432738,-160.06095049,0.00012973,2]
[338462784,1726661432748,-175.5238322,0.00012973,2]
[338462785,1726661432757,-150.0,0.00012986,2]
[338462786,1726661432767,-150.0,0.00012986,2]
[338462787,1726661432776,-150.0,0.00012986,2]
[338462788,1726661432786,-320.954,0.00012993,2]
[338462789,1726661432796,-150.0,0.00012993,2]
[338462790,1726661432805,-169.2889316,0.00012996,2]
[338462791,1726661432815,-541.8599577,0.00012996,2]
[338462792,1726661432825,-228.3897541,0.00012996,2]
[338462793,1726661432834,-929.671812,0.00012996,2]
[338462794,1726661432843,-155.83860717,0.00012999,2]
[338462795,1726661432853,-2044.5824493,0.00012999,2]
[338462796,1726661432884,-127.2775507,0.00012999,2]
[338462797,1726661432894,-539.0,0.00013,2]
[338462798,1726661432903,-2233.7224493,0.00013,2]
[338462799,1726661432990,-303.4456781,0.00013,2]
[338462800,1726661433002,-1500.7981108,0.00013,2]
[338462805,1726661438260,-261.72922688,0.00013,2]
[338462806,1726661438272,-456.40459307,0.00013,2]
[338462807,1726661438283,-1173.98706814,0.00013,2]
[338462808,1726661438294,-2065.88764727,0.00013,2]
[338462823,1726661440301,-505.161,0.00013,2]
[338462824,1726661440313,-721.49531498,0.00013,2]
[338462825,1726661440324,-299.9996382,0.00013,2]
[338462826,1726661440568,-47111.76721896,0.00013,2]
[338462828,1726661440577,-69521.03785493,0.00013,2]
[338462830,1726661440588,-1323.72601942,0.00013,2]
[338462832,1726661440600,-366.06857204,0.00013,2]
[338462895,1726661444384,-327.64903323,0.000129,2]
[338462896,1726661444394,-25.76096787,0.00013,2]
[338462897,1726661444529,-946.72381146,0.00013,2]
[338462898,1726661444547,-3898.14041674,0.00013,2]
[338462899,1726661444558,-302.0,0.00013,2]
[338462900,1726661444571,-744.5,0.00013,2]
[338462901,1726661444586,-18575.03979885,0.00013,2]
[338462902,1726661444599,-19282.30996736,0.00013,2]
[338462903,1726661444611,-9521.52102756,0.00013,2]
[338462905,1726661446334,-182.7851527,0.00012996,2]
[338462906,1726661446345,-766.8648473,0.00013,2]
[338462907,1726661446407,-565.134902,0.00013,2]
[338462908,1726661446461,-2470.79766762,0.00013,2]
[338462909,1726661446473,-263.86078829,0.00013,2]
[338462910,1726661446515,-2283.78575877,0.00013,2]
[338462911,1726661446574,-320.21556241,0.00013,2]
[338462912,1726661446585,-5948.71108862,0.00013,2]
[338462916,1726661461373,500.0,0.00012525,2]
[338462917,1726661484089,535.44498558,0.00010164,2]
[338462918,1726661503257,192.57,0.00010169,2]
[338462919,1726661503476,192.57,0.00012433,2]
[338462920,1726661509999,200.0,0.00012086,2]
[338462921,1726661513277,500.0,0.00015,120]
[338462922,1726661515326,500.0,0.00015,120]
[338462923,1726661516368,500.0,0.00015,120]
[338462924,1726661517414,500.0,0.00015,120]
[338462925,1726661519062,500.0,0.00015,120]
[338462926,1726661519212,316.96,0.00012086,2]
[338462927,1726661519273,500.0,0.00015,120]
[338462928,1726661520068,500.0,0.00015,120]
[338462929,1726661520987,500.0,0.00015,120]
[338462930,1726661529989,500.0,0.00015,120]
[338462931,1726661530143,500.0,0.00015,120]
[338462932,1726661530790,500.0,0.00015,120]
[338462933,1726661531571,500.0,0.00015,120]
[338462934,1726661533759,500.0,0.00015,120]
[338462935,1726661534241,500.0,0.00015,120]
[338462936,1726661534683,500.0,0.00015,120]
[338462937,1726661535122,500.0,0.00015,120]
[338462938,1726661535461,500.0,0.00015,120]
[338462939,1726661535738,500.0,0.00015,120]
[338462940,1726661536180,500.0,0.00015,120]
[338462941,1726661536521,500.0,0.00015,120]
[338462942,1726661536930,500.0,0.00015,120]
[338462943,1726661537261,500.0,0.00015,120]
[338462944,1726661537615,500.0,0.00015,120]
[338462945,1726661548106,500.0,0.00015,120]
[338462946,1726661548443,500.0,0.00015,120]
[338462947,1726661548896,500.0,0.00015,120]
[338462948,1726661549372,500.0,0.00015,120]
[338462949,1726661549792,500.0,0.00015,120]
[338462950,1726661552334,500.0,0.00015,120]
[338462951,1726661552493,500.0,0.00015,120]
[338462952,1726661554708,500.0,0.00015,120]
[338462953,1726661555621,500.0,0.00015,120]
[338462954,1726661556236,1014.43,0.0001206,2]
[338462955,1726661556415,500.0,0.00015,120]
[338462956,1726661557097,500.0,0.00015,120]
[338462957,1726661557932,500.0,0.00015,120]
[338462958,1726661558736,500.0,0.00015,120]
[338462959,1726661559493,500.0,0.00015,120]
[338462960,1726661560200,500.0,0.00015,120]
[338462961,1726661560938,500.0,0.00015,120]
[338462962,1726661561674,500.0,0.00015,120]
[338462963,1726661563142,500.0,0.00015,120]
[338462964,1726661563383,500.0,0.00015,120]
[338462965,1726661564338,500.0,0.00015,120]
[338462966,1726661565148,500.0,0.00015,120]
[338462967,1726661566006,500.0,0.00015,120]
[338462968,1726661566979,500.0,0.00015,120]
[338462969,1726661567750,500.0,0.00015,120]
[338462970,1726661568681,500.0,0.00015,120]
[338462971,1726661569591,500.0,0.00015,120]
[338462972,1726661570347,500.0,0.00015,120]
[338462973,1726661571058,500.0,0.00015,120]
[338462974,1726661571753,500.0,0.00015,120]
[338462975,1726661572663,500.0,0.00015,120]
[338462976,1726661574141,500.0,0.00015,120]
[338462977,1726661574353,500.0,0.00015,120]
[338462978,1726661575106,500.0,0.00015,120]
[338462979,1726661575911,500.0,0.00015,120]
[338462980,1726661576801,500.0,0.00015,120]
[338462981,1726661577522,500.0,0.00015,120]
[338462982,1726661578338,500.0,0.00015,120]
[338462983,1726661579494,500.0,0.00015,120]
[338462984,1726661579920,500.0,0.00015,120]
[338462985,1726661585156,500.0,0.00015,120]
[338462986,1726661585275,500.0,0.00015,120]
[338462987,1726661586048,500.0,0.00015,120]
[338462988,1726661586841,500.0,0.00015,120]
[338462989,1726661587726,500.0,0.00015,120]
[338462990,1726661588503,500.0,0.00015,120]
[338462991,1726661589352,500.0,0.00015,120]
[338462992,1726661589929,500.0,0.00015,120]
[338462993,1726661590730,500.0,0.00015,120]
[338462994,1726661591682,500.0,0.00015,120]
[338462995,1726661592232,500.0,0.00015,120]
[338462996,1726661616577,250.0,0.0001206,2]
[338462997,1726661622677,500.0,0.00015,120]
[338462998,1726661623525,500.0,0.00015,120]
[338462999,1726661624178,500.0,0.00015,120]
[338463000,1726661624997,500.0,0.00015,120]
[338463001,1726661625836,500.0,0.00015,120]
[338463002,1726661626416,500.0,0.00015,120]
[338463003,1726661627100,500.0,0.00015,120]
[338463004,1726661629079,500.0,0.00015,120]
[338463005,1726661629458,500.0,0.00015,120]
[338463006,1726661630427,500.0,0.00015,120]
[338463007,1726661630925,500.0,0.00015,120]
[338463008,1726661631493,500.0,0.00015,120]
[338463009,1726661631920,500.0,0.00015,120]
[338463010,1726661632346,500.0,0.00015,120]
[338463011,1726661638654,500.0,0.00015,120]
[338463012,1726661640176,500.0,0.00015,120]
[338463013,1726661641189,500.0,0.00015,120]
[338463014,1726661642304,500.0,0.00015,120]
[338463015,1726661642823,500.0,0.00015,120]
[338463016,1726661643634,500.0,0.00015,120]
[338463017,1726661644413,500.0,0.00015,120]
[338463018,1726661645128,500.0,0.00015,120]
[338463019,1726661645702,500.0,0.00015,120]
[338463020,1726661646114,500.0,0.00015,120]
[338463021,1726661646534,500.0,0.00015,120]
[338463022,1726661646908,500.0,0.00015,120]
[338463023,1726661647252,500.0,0.00015,120]
[338463024,1726661647526,500.0,0.00015,120]
[338463025,1726661648011,500.0,0.00015,120]
[338463026,1726661648829,500.0,0.00015,120]
[338463027,1726661648920,500.0,0.00015,120]
[338463028,1726661649330,500.0,0.00015,120]
[338463029,1726661649623,500.0,0.00015,120]
[338463030,1726661650674,500.0,0.00015,120]
[338463031,1726661650878,500.0,0.00015,120]
[338463032,1726661650968,500.0,0.00015,120]
[338463033,1726661651112,500.0,0.00015,120]
[338463034,1726661651487,500.0,0.00015,120]
[338463035,1726661651978,500.0,0.00015,120]
[338463036,1726661652341,500.0,0.00015,120]
[338463037,1726661652726,500.0,0.00015,120]
[338463038,1726661653136,500.0,0.00015,120]
[338463039,1726661654086,500.0,0.00015,120]
[338463040,1726661654137,500.0,0.00015,120]
[338463041,1726661654319,500.0,0.00015,120]
[338463042,1726661654644,500.0,0.00015,120]
[338463043,1726661654872,500.0,0.00015,120]
[338463044,1726661655184,500.0,0.00015,120]
[338463045,1726661655547,500.0,0.00015,120]
[338463046,1726661655994,500.0,0.00015,120]
[338463047,1726661656423,500.0,0.00015,120]
[338463048,1726661656740,500.0,0.00015,120]
[338463049,1726661657066,500.0,0.00015,120]
[338463050,1726661657413,500.0,0.00015,120]
[338463051,1726661657731,500.0,0.00015,120]
[338463052,1726661660136,500.0,0.00015,120]
[338463053,1726661669868,500.0,0.00015,120]
[338463054,1726661670957,500.0,0.00015,120]
[338463055,1726661672951,500.0,0.00015,120]
[338463056,1726661673985,500.0,0.00015,120]
[338463057,1726661674794,500.0,0.00015,120]
[338463058,1726661675640,500.0,0.00015,120]
[338463059,1726661676688,500.0,0.00015,120]
[338463060,1726661677579,500.0,0.00015,120]
[338463061,1726661678582,500.0,0.00015,120]
[338463062,1726661679583,500.0,0.00015,120]
[338463063,1726661680477,500.0,0.00015,120]
[338463065,1726661697423,500.0,0.00015,120]
[338463066,1726661698511,500.0,0.00015,120]
[338463067,1726661699657,500.0,0.00015,120]
[338463068,1726661701399,500.0,0.00015,120]
[338463069,1726661708125,512.56345025,0.00015,120]
[338463070,1726661738614,150.22,0.0001202,2]
[338463071,1726661772534,250.0,0.00012016,2]
[338463072,1726661950803,23900.0,0.00012007,2]
[338463073,1726661959400,330.05,0.00012016,2]
[338463074,1726661979469,150.0,0.00012016,2]
[338463075,1726661997878,250.0,0.00012016,2]
[338463076,1726662026061,173.31,0.00010084,2]
[338463077,1726662026204,173.31,0.00012348,2]
[338463078,1726662045633,840.0,0.00011958,2]
[338463079,1726662109780,170.97,0.00011966,2]
[338463080,1726662310059,150.0,0.00011688,2]
[338463081,1726662310455,150.0,0.00012012,2]
[338463082,1726662310929,150.0,0.00012337,2]
[338463083,1726662314282,150.0,0.00011688,2]
[338463084,1726662314590,150.0,0.00012337,2]
[338463085,1726662322794,150.0,0.00011688,2]
[338463086,1726662323052,150.0,0.00012337,2]
[338463087,1726662325300,150.0,0.00011688,2]
[338463088,1726662333788,150.00000001,0.00011688,2]
[338463095,1726662549441,155.97,0.0001003,2]
[338463096,1726662550972,155.97,0.00012294,2]
[338463106,1726662606785,179.64,0.00011961,2]
[338463107,1726662613873,165.02,0.00011977,2]
[338463120,1726662631676,-170.16,0.00012652,2]
[338463121,1726662631687,-150.0,0.00012662,2]
[338463122,1726662631698,-150.0,0.00012736,2]
[338463123,1726662631708,-150.0,0.00012755,2]
[338463124,1726662631717,-150.0,0.00012799,2]
[338463125,1726662631728,-183.7305348,0.000128,2]
[338463127,1726662631737,-260.963,0.000128,2]
[338463129,1726662631747,-1435.8697,0.000128,2]
[338463131,1726662631763,-150.0,0.00012809,2]
[338463133,1726662631773,-142.28202901,0.00012829,2]
[338463135,1726662631784,-27.87797099,0.00012829,2]
[338463137,1726662631796,-168.71903338,0.00012839,2]
[338463139,1726662631805,-170.16,0.00012868,2]
[338463140,1726662631815,-170.16,0.00012868,2]
[338463141,1726662631825,-170.16,0.00012868,2]
[338463142,1726662631836,-170.16,0.0001287,2]
[338463143,1726662632155,-170.16,0.0001287,2]
[338463144,1726662632174,-170.16,0.0001287,2]
[338463145,1726662632184,-170.16,0.0001287,2]
[338463146,1726662632193,-170.16,0.0001287,2]
[338463147,1726662632203,-150.0,0.00012872,2]
[338463148,1726662632213,-499.99,0.00012873,2]
[338463149,1726662632223,-43.55559281,0.00012878,2]
[338463150,1726662632235,-1217.44440719,0.00012878,2]
[338463151,1726662632244,-818.91759281,0.00012878,2]
[338463152,1726662632256,-5042.08240719,0.00012878,2]
[338463153,1726662632266,-150.0,0.00012878,2]
[338463154,1726662632275,-8357.02,0.00012878,2]
[338463155,1726662632285,-150.0,0.0001288,2]
[338463156,1726662632296,-2521.56832217,0.0001288,2]
[338463157,1726662632308,-324.2343219,0.0001288,2]
[338463158,1726662632319,-6510.898581,0.0001288,2]
[338463160,1726662637445,-179.13,0.00012642,2]
[338463162,1726662637454,-179.13,0.00012868,2]
[338463164,1726662637464,-448.0,0.00012878,2]
[338463166,1726662637473,-272.74,0.0001288,2]
[338463167,1726662637503,-1140.55877393,0.0001288,2]
[338463168,1726662637513,-59.90050984,0.0001289,2]
[338463348,1726662639644,-1363.25951791,0.00012878,2]
[338463350,1726662639656,-947.41484496,0.00012878,2]
[338463353,1726662639679,-2592.37062507,0.00012878,2]
[338463916,1726662646380,-4920.92001206,0.00012878,2]
[338463917,1726662646390,-119.22949016,0.0001289,2]
[338463918,1726662646400,-500.0,0.00012896,2]
[338463919,1726662646410,-200.0,0.00012896,2]
[338463920,1726662646419,-61957.851,0.000129,2]
[338463921,1726662646429,-1000.0,0.000129,2]
[338463922,1726662646439,-648.37997398,0.000129,2]
[338463923,1726662646455,-430.96562602,0.000129,2]
[338463924,1726662646465,-1631.6351,0.000129,2]
[338463925,1726662646475,-35091.6249,0.000129,2]
[338463926,1726662646485,-3134.1206,0.000129,2]
[338463927,1726662646495,-202.83731714,0.000129,2]
[338463928,1726662646505,-168.36798198,0.000129,2]
[338463929,1726662646514,-7500.0,0.000129,2]
[338463930,1726662646524,-198.49526764,0.000129,2]
[338463931,1726662646534,-164.99535302,0.000129,2]
[338463932,1726662646543,-158.50695911,0.000129,2]
[338463933,1726662646554,-328.44532766,0.000129,2]
[338463934,1726662646564,-150.0,0.00012903,2]
[338463935,1726662646573,-150.0,0.00012925,2]
[338463936,1726662646583,-150.0,0.00012954,2]
[338463937,1726662646593,-150.0,0.00012966,2]
[338463938,1726662646603,-150.0,0.00012972,2]
[338463939,1726662646613,-160.31917081,0.00012973,2]
[338463940,1726662646623,-159.17433469,0.00012973,2]
[338463941,1726662646632,-158.82275296,0.00012973,2]
[338463942,1726662646642,-500.0,0.00012973,2]
[338463943,1726662646652,-495.60950826,0.00012973,2]
[338463944,1726662646662,-200.58567056,0.00012973,2]
[338463945,1726662646671,-500.0,0.00012973,2]
[338463946,1726662646681,-454.39570048,0.00012973,2]
[338463947,1726662646692,-1901.0,0.0001298,2]
[338463948,1726662646701,-553.0,0.0001298,2]
[338463949,1726662646710,-1922.0,0.0001298,2]
[338463950,1726662646719,-248.0,0.0001298,2]
[338463951,1726662646728,-806.0,0.0001298,2]
[338463952,1726662646738,-3344.0,0.0001298,2]
[338463953,1726662646748,-1079.0,0.0001298,2]
[338463954,1726662646763,-150.0,0.0001298,2]
[338463955,1726662646772,-624.0,0.0001298,2]
[338463956,1726662646781,-1547.0,0.0001298,2]
[338463957,1726662646792,-198.94022254,0.00012986,2]
[338463958,1726662646803,-150.0,0.00012986,2]
[338463959,1726662646812,-150.0,0.00012986,2]
[338463960,1726662646822,-292.38079082,0.00012986,2]
[338463961,1726662646833,-150.0,0.00012991,2]
[338463962,1726662646843,-256.763,0.00012993,2]
[338463963,1726662646853,-150.0,0.00012996,2]
[338463964,1726662646862,-344.633923,0.00012996,2]
[338463965,1726662646872,-198.7195497,0.00012996,2]
[338463966,1726662646882,-1236.5695909,0.00012996,2]
[338463967,1726662646892,-689.2678465,0.00012996,2]
[338463968,1726662646902,-623.30837792,0.00012999,2]
[338463969,1726662646912,-2081.36,0.00012999,2]
[338463970,1726662646922,-584.0,0.00013,2]
[338463971,1726662646931,-28502.31366063,0.00013,2]
[338463972,1726662646941,-572737.66966636,0.00013,2]
[338463973,1726662646977,-1428.791,0.00013,2]
[338463976,1726662647086,-1766.75181984,0.00013,2]
[338464300,1726662650650,-1146.0,0.00012878,2]
[338464302,1726662650660,-58877.4382566,0.00013,2]
[338464424,1726662652690,-598.7,0.00013,2]
[338464534,1726662697738,250.0,0.00012515,2]
[338464535,1726662707949,213.65,0.00010959,2]
[338464536,1726662921931,230.00818522,0.00012422,2]
[338464537,1726662921957,769.99181478,0.00012422,2]
[338464538,1726663063578,10000.0,0.000126,2]
[338464540,1726663170062,155.97,0.00010496,2]
[338464541,1726663200266,250.0,0.00012466,2]
[338464543,1726663208068,165.02,0.00012454,2]
[338464547,1726663292379,253.56,0.00012376,2]
[338464548,1726663410703,200.0,0.00012402,2]
[338464551,1726663659573,500.0,0.00010164,2]
[338464552,1726663722373,155.97,0.0001045,2]
[338464553,1726663742898,200.74,0.00012359,2]
[338464554,1726663793147,284.78,0.00012339,2]
[338464558,1726663798907,-457.376206,0.00012831,2]
[338464559,1726663798933,-396.99606725,0.00012896,2]
[338464560,1726663831643,-103.00393275,0.00012896,2]
[338464561,1726663831654,-200.0,0.00012896,2]
[338464562,1726663831664,-162.26985372,0.000129,2]
[338464563,1726663831673,-5156.67646746,0.000129,2]
[338464564,1726663831684,-301.19013755,0.000129,2]
[338464565,1726663831810,-27.25519009,0.000129,2]
[338464566,1726663831820,-150.0,0.00012959,2]
[338464567,1726663831829,-150.0,0.0001298,2]
[338464568,1726663831840,-136.488297,0.00012996,2]
[338464586,1726663840245,-767.4180605,0.00012996,2]
[338464588,1726663840255,-442.8969386,0.00012996,2]
[338464590,1726663840264,-752.3919796,0.00012996,2]
[338464592,1726663840274,-205.41,0.00012999,2]